[Event "Titled Tuesday Blitz January 17 Late 2023"]
[White "Kuzmicz, Krystian"]
[Black "Perez Perez, Gabriel"]
[WhiteFideId "1119125"]
[BlackFideId "32089147"]
[WhiteElo "2466"]
[BlackElo "2185"]
[Result "0-1"]
[Round "01"]
[TimeControl "180+2"]
[Date "2023.01.17"]
[WhiteClock "0:00:32"]
[BlackClock "0:00:05"]

1. e4 {[%clk 0:03:00]}  g6 {[%clk 0:02:57]} 2. g3 {[%clk 0:03:00]}  Bg7 {[%clk 0:02:55]} 3. Bg2 {[%clk 0:03:00]}  d6 {[%clk 0:02:53]} 4. f4 {[%clk 0:03:00]}  Nf6 {[%clk 0:02:52]} 5. d3 {[%clk 0:03:00]}  O-O {[%clk 0:02:52]} 6. Nf3 {[%clk 0:03:00]}  c5 {[%clk 0:02:52]} 7. O-O {[%clk 0:03:00]}  Nc6 {[%clk 0:02:53]} 8. Nc3 {[%clk 0:03:01]}  Rb8 {[%clk 0:02:50]} 9. h3 {[%clk 0:03:02]}  b5 {[%clk 0:02:50]} 10. g4 {[%clk 0:03:02]}  b4 {[%clk 0:02:49]} 11. Ne2 {[%clk 0:03:03]}  Nd7 {[%clk 0:02:41]} 12. f5 {[%clk 0:02:59]}  Nde5 {[%clk 0:02:37]} 13. Nf4 {[%clk 0:02:59]}  Nxf3+ {[%clk 0:02:37]} 14. Qxf3 {[%clk 0:02:59]}  Nd4 {[%clk 0:02:37]} 15. Qf2 {[%clk 0:02:59]}  Bb7 {[%clk 0:02:34]} 16. Be3 {[%clk 0:02:54]}  a5 {[%clk 0:02:31]} 17. Rae1 {[%clk 0:02:52]}  a4 {[%clk 0:02:30]} 18. h4 {[%clk 0:02:50]}  Nc6 {[%clk 0:02:27]} 19. b3 {[%clk 0:02:47]}  axb3 {[%clk 0:02:23]} 20. axb3 {[%clk 0:02:48]}  Ra8 {[%clk 0:02:03]} 21. g5 {[%clk 0:02:46]}  Nd4 {[%clk 0:01:53]} 22. h5 {[%clk 0:02:40]}  Ra2 {[%clk 0:01:53]} 23. hxg6 {[%clk 0:02:32]}  hxg6 {[%clk 0:01:38]} 24. fxg6 {[%clk 0:02:31]}  fxg6 {[%clk 0:01:29]} 25. Qh4 {[%clk 0:02:31]}  Qe8 {[%clk 0:01:10]} 26. Bxd4 {[%clk 0:02:23]}  Bxd4+ {[%clk 0:01:10]} 27. Kh1 {[%clk 0:02:23]}  Qf7 {[%clk 0:00:50]} 28. Bh3 {[%clk 0:02:16]}  Qh7 {[%clk 0:00:38]} 29. Qxh7+ {[%clk 0:01:44]}  Kxh7 {[%clk 0:00:39]} 30. Re2 {[%clk 0:01:44]}  Be5 {[%clk 0:00:19]} 31. Nd5 {[%clk 0:01:25]}  Rxf1+ {[%clk 0:00:20]} 32. Bxf1 {[%clk 0:01:24]}  Bxd5 {[%clk 0:00:17]} 33. exd5 {[%clk 0:01:25]}  Ra1 {[%clk 0:00:15]} 34. Kg2 {[%clk 0:01:22]}  Kg7 {[%clk 0:00:16]} 35. Rf2 {[%clk 0:01:17]}  Ra8 {[%clk 0:00:12]} 36. Be2 {[%clk 0:01:15]}  Rh8 {[%clk 0:00:12]} 37. Rf1 {[%clk 0:01:07]}  Rh2+ {[%clk 0:00:12]} 38. Kf3 {[%clk 0:01:08]}  Rh3+ {[%clk 0:00:10]} 39. Kf2 {[%clk 0:01:08]}  Bd4+ {[%clk 0:00:06]} 40. Ke1 {[%clk 0:01:07]}  Rg3 {[%clk 0:00:06]} 41. Kd2 {[%clk 0:01:06]}  Rxg5 {[%clk 0:00:06]} 42. Bf3 {[%clk 0:01:05]}  Rf5 {[%clk 0:00:06]} 43. Ke2 {[%clk 0:01:04]}  Re5+ {[%clk 0:00:06]} 44. Be4 {[%clk 0:01:05]}  Rg5 {[%clk 0:00:06]} 45. Rh1 {[%clk 0:01:05]}  Rh5 {[%clk 0:00:06]} 46. Rf1 {[%clk 0:00:56]}  Rh2+ {[%clk 0:00:06]} 47. Kf3 {[%clk 0:00:57]}  Rxc2 {[%clk 0:00:05]} 48. Kg4 {[%clk 0:00:57]}  Rf2 {[%clk 0:00:04]} 49. Rh1 {[%clk 0:00:56]}  Be5 {[%clk 0:00:02]} 50. Kg5 {[%clk 0:00:55]}  Rf8 {[%clk 0:00:02]} 51. Rg1 {[%clk 0:00:48]}  Bf6+ {[%clk 0:00:02]} 52. Kg4 {[%clk 0:00:48]}  g5 {[%clk 0:00:03]} 53. Rg2 {[%clk 0:00:46]}  Rh8 {[%clk 0:00:04]} 54. Ra2 {[%clk 0:00:45]}  Rh4+ {[%clk 0:00:05]} 55. Kg3 {[%clk 0:00:45]}  Rh8 {[%clk 0:00:04]} 56. Kg4 {[%clk 0:00:44]}  Rh4+ {[%clk 0:00:03]} 57. Kf5 {[%clk 0:00:44]}  Rh8 {[%clk 0:00:03]} 58. Ke6 {[%clk 0:00:43]}  Rb8 {[%clk 0:00:03]} 59. Rh2 {[%clk 0:00:43]}  Rh8 {[%clk 0:00:03]} 60. Ra2 {[%clk 0:00:43]}  Rg8 {[%clk 0:00:03]} 61. Ra7 {[%clk 0:00:41]}  g4 {[%clk 0:00:03]} 62. Bg2 {[%clk 0:00:31]}  Kh6 {[%clk 0:00:03]} 63. Kf5 {[%clk 0:00:32]}  Rg5+ {[%clk 0:00:02]} 64. Kf4 {[%clk 0:00:32]}  g3 {[%clk 0:00:03]} 65. Kf3 {[%clk 0:00:32]}  Kg7 {[%clk 0:00:02]} 66. Kf4 {[%clk 0:00:32]}  Rg6 {[%clk 0:00:01]} 67. Kf5 {[%clk 0:00:32]}  Rg5+ {[%clk 0:00:02]} 68. Kf4 {[%clk 0:00:32]}  Kf7 {[%clk 0:00:02]} 69. Ra2 {[%clk 0:00:30]}  Kg6 {[%clk 0:00:03]} 70. Be4+ {[%clk 0:00:29]}  Kg7 {[%clk 0:00:03]} 71. Bg2 {[%clk 0:00:27]}  Rg6 {[%clk 0:00:02]} 72. Kf3 {[%clk 0:00:26]}  Be5 {[%clk 0:00:03]} 73. Bh3 {[%clk 0:00:26]}  Rf6+ {[%clk 0:00:03]} 74. Ke4 {[%clk 0:00:25]}  Rf2 {[%clk 0:00:03]} 75. Rxf2 {[%clk 0:00:25]}  gxf2 {[%clk 0:00:04]} 76. Bf1 {[%clk 0:00:26]}  Bd4 {[%clk 0:00:04]} 77. Kf3 {[%clk 0:00:26]}  Kf6 {[%clk 0:00:05]} 78. Ke4 {[%clk 0:00:27]}  Kg5 {[%clk 0:00:05]} 79. Kf3 {[%clk 0:00:28]}  Kf5 {[%clk 0:00:05]} 80. Bh3+ {[%clk 0:00:29]}  Ke5 {[%clk 0:00:05]} 81. Bf1 {[%clk 0:00:29]}  Kxd5 {[%clk 0:00:05]} 82. Kf4 {[%clk 0:00:30]}  Kc6 {[%clk 0:00:05]} 83. Kf5 {[%clk 0:00:31]}  Kd7 {[%clk 0:00:05]} 84. Ke4 {[%clk 0:00:30]}  e6 {[%clk 0:00:05]} 85. Kf4 {[%clk 0:00:31]}  d5 {[%clk 0:00:06]} 86. Kg5 {[%clk 0:00:32]}  Kd6 {[%clk 0:00:06]} 87. Kf4 {[%clk 0:00:32]}  Bc3 {[%clk 0:00:05]} 88. Kf3 {[%clk 0:00:32]}  Be1 {[%clk 0:00:06]} 89. Kf4 {[%clk 0:00:32]}  Bd2+ {[%clk 0:00:05]} 90. Kf3 {[%clk 0:00:33]}  Be1 {[%clk 0:00:06]} 91. Kf4 {[%clk 0:00:33]}  Ke7 {[%clk 0:00:07]} 92. Ke5 {[%clk 0:00:33]}  Bc3+ {[%clk 0:00:05]} 93. Kf4 {[%clk 0:00:34]}  Kf6 {[%clk 0:00:06]} 94. Bh3 {[%clk 0:00:33]}  c4 {[%clk 0:00:04]} 95. dxc4 {[%clk 0:00:32]}  dxc4 {[%clk 0:00:05]} 0-1


[Site "https://www.chess.com"]

[Event "Titled Tuesday Blitz January 17 Late 2023"]
[White "Gutkin, Ilya"]
[Black "Alex_Sahakyan2006"]
[WhiteFideId "16203470"]
[WhiteElo "2273"]
[BlackElo "2674"]
[Result "0-1"]
[Round "01"]
[TimeControl "180+2"]
[Date "2023.01.17"]
[WhiteClock "0:01:36"]
[BlackClock "0:01:32"]

1. e4 {[%clk 0:03:00]}  c5 {[%clk 0:02:54]} 2. Nf3 {[%clk 0:03:00]}  e6 {[%clk 0:02:52]} 3. d4 {[%clk 0:03:00]}  cxd4 {[%clk 0:02:51]} 4. Nxd4 {[%clk 0:03:01]}  Nc6 {[%clk 0:02:52]} 5. Nc3 {[%clk 0:02:59]}  Nf6 {[%clk 0:02:52]} 6. Nxc6 {[%clk 0:02:57]}  bxc6 {[%clk 0:02:52]} 7. e5 {[%clk 0:02:57]}  Nd5 {[%clk 0:02:53]} 8. Ne4 {[%clk 0:02:55]}  f5 {[%clk 0:02:50]} 9. exf6 {[%clk 0:02:50]}  Nxf6 {[%clk 0:02:50]} 10. Nd6+ {[%clk 0:02:44]}  Bxd6 {[%clk 0:02:50]} 11. Qxd6 {[%clk 0:02:43]}  Qb6 {[%clk 0:02:50]} 12. Bd3 {[%clk 0:02:35]}  c5 {[%clk 0:02:26]} 13. Bf4 {[%clk 0:02:24]}  Bb7 {[%clk 0:02:13]} 14. O-O {[%clk 0:02:21]}  Rc8 {[%clk 0:01:59]} 15. Rfe1 {[%clk 0:01:50]}  Kf7 {[%clk 0:01:35]} 16. Bg5 {[%clk 0:01:36]}  Qxd6 {[%clk 0:01:32]} 0-1


[Site "https://www.chess.com"]

[Event "Titled Tuesday Blitz January 17 Late 2023"]
[White "Skvortsov, Andrei"]
[Black "Arnold, Ken"]
[WhiteFideId "24108600"]
[BlackFideId "2056836"]
[WhiteElo "2313"]
[BlackElo "2355"]
[Result "1-0"]
[Round "01"]
[TimeControl "180+2"]
[Date "2023.01.17"]
[WhiteClock "0:01:30"]
[BlackClock "0:00:13"]

1. d4 {[%clk 0:02:59]}  Nf6 {[%clk 0:02:59]} 2. Nf3 {[%clk 0:02:58]}  e6 {[%clk 0:02:59]} 3. Nbd2 {[%clk 0:02:58]}  d5 {[%clk 0:02:59]} 4. c4 {[%clk 0:02:58]}  Nbd7 {[%clk 0:02:58]} 5. e3 {[%clk 0:02:58]}  Be7 {[%clk 0:02:57]} 6. Rb1 {[%clk 0:02:57]}  O-O {[%clk 0:02:55]} 7. b4 {[%clk 0:02:58]}  dxc4 {[%clk 0:02:54]} 8. Bxc4 {[%clk 0:02:58]}  a5 {[%clk 0:02:48]} 9. b5 {[%clk 0:02:55]}  b6 {[%clk 0:02:47]} 10. e4 {[%clk 0:02:52]}  Bb7 {[%clk 0:02:44]} 11. Qe2 {[%clk 0:02:52]}  Re8 {[%clk 0:02:29]} 12. O-O {[%clk 0:02:52]}  Bb4 {[%clk 0:02:25]} 13. e5 {[%clk 0:02:51]}  Nd5 {[%clk 0:02:24]} 14. Ne4 {[%clk 0:02:51]}  Nc3 {[%clk 0:02:12]} 15. Nxc3 {[%clk 0:02:51]}  Bxc3 {[%clk 0:02:12]} 16. Bd3 {[%clk 0:02:34]}  Nf8 {[%clk 0:02:03]} 17. Be4 {[%clk 0:02:22]}  Bxe4 {[%clk 0:01:49]} 18. Qxe4 {[%clk 0:02:23]}  Qd7 {[%clk 0:01:43]} 19. a3 {[%clk 0:02:22]}  a4 {[%clk 0:01:30]} 20. Qc2 {[%clk 0:02:18]}  Ba5 {[%clk 0:01:16]} 21. Be3 {[%clk 0:02:16]}  Red8 {[%clk 0:01:12]} 22. Rfc1 {[%clk 0:02:14]}  Ng6 {[%clk 0:01:05]} 23. h4 {[%clk 0:02:14]}  Ra7 {[%clk 0:00:59]} 24. h5 {[%clk 0:02:10]}  Ne7 {[%clk 0:00:59]} 25. h6 {[%clk 0:02:09]}  Nd5 {[%clk 0:00:57]} 26. Ng5 {[%clk 0:02:05]}  g6 {[%clk 0:00:45]} 27. Ne4 {[%clk 0:02:03]}  f5 {[%clk 0:00:30]} 28. exf6 {[%clk 0:02:02]}  Rf8 {[%clk 0:00:29]} 29. Bg5 {[%clk 0:01:59]}  e5 {[%clk 0:00:20]} 30. dxe5 {[%clk 0:01:56]}  Qf5 {[%clk 0:00:20]} 31. Qc4 {[%clk 0:01:55]}  Qe6 {[%clk 0:00:18]} 32. Qc6 {[%clk 0:01:54]}  Re8 {[%clk 0:00:14]} 33. f7+ {[%clk 0:01:36]}  Kxf7 {[%clk 0:00:14]} 34. Bf6 {[%clk 0:01:30]}  Raa8 {[%clk 0:00:13]} 35. Ng5+ {[%clk 0:01:30]} 1-0


[Site "https://www.chess.com"]

[Event "Titled Tuesday Blitz January 17 Late 2023"]
[White "Msellek, Ilyass"]
[Black "Doluhanova, Evgeniya"]
[WhiteFideId "675938"]
[BlackFideId "14112035"]
[WhiteElo "2420"]
[BlackElo "2275"]
[Result "1-0"]
[Round "01"]
[TimeControl "180+2"]
[Date "2023.01.17"]
[WhiteClock "0:01:14"]
[BlackClock "0:00:35"]

1. d4 {[%clk 0:02:58]}  Nf6 {[%clk 0:02:59]} 2. Nf3 {[%clk 0:02:57]}  e6 {[%clk 0:02:55]} 3. Bg5 {[%clk 0:02:56]}  d5 {[%clk 0:02:52]} 4. Nbd2 {[%clk 0:02:56]}  Nbd7 {[%clk 0:02:51]} 5. e4 {[%clk 0:02:55]}  dxe4 {[%clk 0:02:50]} 6. Nxe4 {[%clk 0:02:56]}  c5 {[%clk 0:02:49]} 7. dxc5 {[%clk 0:02:52]}  h6 {[%clk 0:02:42]} 8. Bxf6 {[%clk 0:02:49]}  gxf6 {[%clk 0:02:42]} 9. Nd6+ {[%clk 0:02:48]}  Bxd6 {[%clk 0:02:41]} 10. cxd6 {[%clk 0:02:49]}  Qa5+ {[%clk 0:02:37]} 11. c3 {[%clk 0:02:49]}  b6 {[%clk 0:02:34]} 12. b4 {[%clk 0:02:31]}  Qa3 {[%clk 0:02:20]} 13. Rc1 {[%clk 0:02:02]}  Bb7 {[%clk 0:02:11]} 14. Be2 {[%clk 0:02:02]}  Rg8 {[%clk 0:02:07]} 15. O-O {[%clk 0:02:00]}  Qxa2 {[%clk 0:02:07]} 16. c4 {[%clk 0:01:50]}  Rc8 {[%clk 0:01:43]} 17. c5 {[%clk 0:01:47]}  bxc5 {[%clk 0:01:42]} 18. bxc5 {[%clk 0:01:48]}  Rxc5 {[%clk 0:01:41]} 19. Rxc5 {[%clk 0:01:47]}  Nxc5 {[%clk 0:01:40]} 20. Bb5+ {[%clk 0:01:48]}  Kd8 {[%clk 0:01:35]} 21. Qd4 {[%clk 0:01:46]}  Ne4 {[%clk 0:01:15]} 22. Ra1 {[%clk 0:01:35]}  e5 {[%clk 0:00:54]} 23. Rxa2 {[%clk 0:01:34]}  exd4 {[%clk 0:00:53]} 24. Rxa7 {[%clk 0:01:35]}  Nxd6 {[%clk 0:00:53]} 25. Be2 {[%clk 0:01:29]}  d3 {[%clk 0:00:50]} 26. Bd1 {[%clk 0:01:29]}  d2 {[%clk 0:00:47]} 27. Ra2 {[%clk 0:01:22]}  Ne4 {[%clk 0:00:42]} 28. g3 {[%clk 0:01:15]}  Nc3 {[%clk 0:00:40]} 29. Rxd2+ {[%clk 0:01:15]}  Kc7 {[%clk 0:00:40]} 30. Rc2 {[%clk 0:01:14]}  Rd8 {[%clk 0:00:37]} 31. Rxc3+ {[%clk 0:01:14]}  Kb8 {[%clk 0:00:35]} 32. Be2 {[%clk 0:01:14]} 1-0


[Site "https://www.chess.com"]

[Event "Titled Tuesday Blitz January 17 Late 2023"]
[White "Mayaud, Raphael"]
[Black "Di Berardino, Diego Rafael"]
[WhiteFideId "627151"]
[BlackFideId "2105446"]
[WhiteElo "2201"]
[BlackElo "2479"]
[Result "0-1"]
[Round "01"]
[TimeControl "180+2"]
[Date "2023.01.17"]
[WhiteClock "0:00:02"]
[BlackClock "0:02:15"]

1. e4 {[%clk 0:02:55]}  c5 {[%clk 0:02:59]} 2. d3 {[%clk 0:02:51]}  Nc6 {[%clk 0:02:57]} 3. Nc3 {[%clk 0:02:47]}  g6 {[%clk 0:02:57]} 4. f3 {[%clk 0:02:40]}  Bg7 {[%clk 0:02:56]} 5. Nge2 {[%clk 0:02:34]}  e5 {[%clk 0:02:52]} 6. g3 {[%clk 0:02:28]}  Nge7 {[%clk 0:02:52]} 7. Bh3 {[%clk 0:02:25]}  d5 {[%clk 0:02:47]} 8. O-O {[%clk 0:02:15]}  Bxh3 {[%clk 0:02:46]} 9. exd5 {[%clk 0:02:06]}  Bxf1 {[%clk 0:02:28]} 10. Qxf1 {[%clk 0:02:03]}  Nxd5 {[%clk 0:02:28]} 11. Nxd5 {[%clk 0:01:46]}  Qxd5 {[%clk 0:02:29]} 12. Qf2 {[%clk 0:01:41]}  O-O {[%clk 0:02:28]} 13. Bg5 {[%clk 0:01:29]}  Nd4 {[%clk 0:02:26]} 14. c3 {[%clk 0:01:22]}  Nxf3+ {[%clk 0:02:25]} 15. Kg2 {[%clk 0:01:13]}  Nxg5+ {[%clk 0:02:24]} 16. Kf1 {[%clk 0:00:53]}  Qxd3 {[%clk 0:02:22]} 17. b4 {[%clk 0:00:35]}  Qf3 {[%clk 0:02:20]} 18. Qxf3 {[%clk 0:00:33]}  Nxf3 {[%clk 0:02:20]} 19. Kg2 {[%clk 0:00:12]}  e4 {[%clk 0:02:19]} 20. Nf4 {[%clk 0:00:11]}  Bxc3 {[%clk 0:02:18]} 21. Rd1 {[%clk 0:00:10]}  cxb4 {[%clk 0:02:18]} 22. Rd6 {[%clk 0:00:09]}  Rad8 {[%clk 0:02:16]} 23. Re6 {[%clk 0:00:02]}  Rd2+ {[%clk 0:02:15]} 0-1


[Site "https://www.chess.com"]

[Event "Titled Tuesday Blitz January 17 Late 2023"]
[White "Solon, Nathan"]
[Black "Kaganskiy, Gleb"]
[WhiteFideId "2017229"]
[BlackFideId "4132025"]
[WhiteElo "2306"]
[BlackElo "2205"]
[Result "1-0"]
[Round "01"]
[TimeControl "180+2"]
[Date "2023.01.17"]
[WhiteClock "0:00:51"]
[BlackClock "0:00:14"]

1. Nf3 {[%clk 0:02:56]}  d5 {[%clk 0:02:58]} 2. g3 {[%clk 0:02:56]}  Nf6 {[%clk 0:02:58]} 3. Bg2 {[%clk 0:02:56]}  e6 {[%clk 0:02:59]} 4. O-O {[%clk 0:02:56]}  Be7 {[%clk 0:03:00]} 5. c4 {[%clk 0:02:56]}  O-O {[%clk 0:03:00]} 6. b3 {[%clk 0:02:56]}  c5 {[%clk 0:02:59]} 7. cxd5 {[%clk 0:02:53]}  exd5 {[%clk 0:03:00]} 8. d4 {[%clk 0:02:53]}  Nc6 {[%clk 0:03:00]} 9. Bb2 {[%clk 0:02:53]}  Ne4 {[%clk 0:02:54]} 10. Nc3 {[%clk 0:02:47]}  Bf6 {[%clk 0:02:51]} 11. Rc1 {[%clk 0:02:28]}  Nxd4 {[%clk 0:02:36]} 12. Nxe4 {[%clk 0:01:38]}  Nxf3+ {[%clk 0:02:28]} 13. exf3 {[%clk 0:01:38]}  Bxb2 {[%clk 0:02:29]} 14. Rc2 {[%clk 0:01:34]}  dxe4 {[%clk 0:02:03]} 15. Rxb2 {[%clk 0:01:34]}  Qg5 {[%clk 0:01:40]} 16. fxe4 {[%clk 0:01:27]}  Bg4 {[%clk 0:01:32]} 17. Qc1 {[%clk 0:01:23]}  Qxc1 {[%clk 0:01:16]} 18. Rxc1 {[%clk 0:01:24]}  b6 {[%clk 0:01:15]} 19. b4 {[%clk 0:01:24]}  cxb4 {[%clk 0:01:12]} 20. Rxb4 {[%clk 0:01:25]}  Rac8 {[%clk 0:01:10]} 21. Rbc4 {[%clk 0:01:24]}  g6 {[%clk 0:00:55]} 22. e5 {[%clk 0:01:21]}  Be6 {[%clk 0:00:47]} 23. Rxc8 {[%clk 0:01:20]}  Rxc8 {[%clk 0:00:47]} 24. Rxc8+ {[%clk 0:01:20]}  Bxc8 {[%clk 0:00:48]} 25. f4 {[%clk 0:01:20]}  Kf8 {[%clk 0:00:40]} 26. Kf2 {[%clk 0:01:20]}  Ke7 {[%clk 0:00:40]} 27. Ke3 {[%clk 0:01:21]}  f6 {[%clk 0:00:40]} 28. Kd4 {[%clk 0:01:18]}  fxe5+ {[%clk 0:00:40]} 29. Kxe5 {[%clk 0:01:15]}  Be6 {[%clk 0:00:39]} 30. a3 {[%clk 0:01:15]}  Bb3 {[%clk 0:00:33]} 31. Bc6 {[%clk 0:01:12]}  Ba2 {[%clk 0:00:27]} 32. h4 {[%clk 0:01:11]}  Bb3 {[%clk 0:00:22]} 33. Be4 {[%clk 0:01:11]}  Bf7 {[%clk 0:00:21]} 34. g4 {[%clk 0:01:08]}  h5 {[%clk 0:00:13]} 35. g5 {[%clk 0:01:07]}  Be8 {[%clk 0:00:12]} 36. Bd5 {[%clk 0:01:05]}  a5 {[%clk 0:00:11]} 37. f5 {[%clk 0:00:54]}  gxf5 {[%clk 0:00:10]} 38. Kxf5 {[%clk 0:00:55]}  b5 {[%clk 0:00:11]} 39. g6 {[%clk 0:00:53]}  Bxg6+ {[%clk 0:00:07]} 40. Kxg6 {[%clk 0:00:52]}  Kf8 {[%clk 0:00:07]} 41. Kxh5 {[%clk 0:00:52]}  Kg7 {[%clk 0:00:06]} 42. Kg5 {[%clk 0:00:52]}  b4 {[%clk 0:00:07]} 43. a4 {[%clk 0:00:52]}  Kh7 {[%clk 0:00:06]} 44. Kf4 {[%clk 0:00:49]}  Kh6 {[%clk 0:00:07]} 45. Ke5 {[%clk 0:00:49]}  Kh5 {[%clk 0:00:07]} 46. Kd4 {[%clk 0:00:49]}  Kxh4 {[%clk 0:00:08]} 47. Kc5 {[%clk 0:00:49]}  Kg5 {[%clk 0:00:08]} 48. Kb5 {[%clk 0:00:50]}  Kf6 {[%clk 0:00:09]} 49. Kxa5 {[%clk 0:00:50]}  Ke7 {[%clk 0:00:09]} 50. Kxb4 {[%clk 0:00:49]}  Kd6 {[%clk 0:00:09]} 51. Bg2 {[%clk 0:00:48]}  Kc7 {[%clk 0:00:10]} 52. Kc5 {[%clk 0:00:49]}  Kb8 {[%clk 0:00:11]} 53. Kb6 {[%clk 0:00:49]}  Kc8 {[%clk 0:00:11]} 54. a5 {[%clk 0:00:50]}  Kd7 {[%clk 0:00:12]} 55. a6 {[%clk 0:00:50]}  Kd6 {[%clk 0:00:13]} 56. a7 {[%clk 0:00:50]}  Ke5 {[%clk 0:00:14]} 57. a8=Q {[%clk 0:00:51]} 1-0


[Site "https://www.chess.com"]

[Event "Titled Tuesday Blitz January 17 Late 2023"]
[White "Haydon, David L"]
[Black "Melikhov, Evgeny V."]
[WhiteFideId "415405"]
[BlackFideId "4122046"]
[WhiteElo "2253"]
[BlackElo "2269"]
[Result "0-1"]
[Round "01"]
[TimeControl "180+2"]
[Date "2023.01.17"]
[WhiteClock "0:01:30"]
[BlackClock "0:00:16"]

1. d4 {[%clk 0:02:57]}  Nf6 {[%clk 0:02:59]} 2. c4 {[%clk 0:02:56]}  e6 {[%clk 0:02:57]} 3. Nc3 {[%clk 0:02:56]}  Bb4 {[%clk 0:02:57]} 4. f3 {[%clk 0:02:56]}  d5 {[%clk 0:02:54]} 5. e3 {[%clk 0:02:55]}  c6 {[%clk 0:02:37]} 6. a3 {[%clk 0:02:51]}  Bxc3+ {[%clk 0:02:36]} 7. bxc3 {[%clk 0:02:51]}  O-O {[%clk 0:02:35]} 8. Bd3 {[%clk 0:02:50]}  b6 {[%clk 0:02:33]} 9. Ne2 {[%clk 0:02:49]}  Ba6 {[%clk 0:02:28]} 10. cxd5 {[%clk 0:02:46]}  Bxd3 {[%clk 0:02:27]} 11. Qxd3 {[%clk 0:02:45]}  cxd5 {[%clk 0:02:27]} 12. c4 {[%clk 0:02:43]}  dxc4 {[%clk 0:02:19]} 13. Qxc4 {[%clk 0:02:43]}  Qd5 {[%clk 0:02:16]} 14. Qd3 {[%clk 0:02:41]}  Rc8 {[%clk 0:02:04]} 15. e4 {[%clk 0:02:41]}  Qc4 {[%clk 0:02:03]} 16. Qxc4 {[%clk 0:02:41]}  Rxc4 {[%clk 0:02:02]} 17. Be3 {[%clk 0:02:40]}  Nc6 {[%clk 0:02:00]} 18. Kf2 {[%clk 0:02:39]}  Na5 {[%clk 0:01:59]} 19. Rhc1 {[%clk 0:02:38]}  Rac8 {[%clk 0:01:58]} 20. Rxc4 {[%clk 0:02:38]}  Rxc4 {[%clk 0:01:58]} 21. Rd1 {[%clk 0:02:36]}  Rc2 {[%clk 0:01:51]} 22. d5 {[%clk 0:02:30]}  exd5 {[%clk 0:01:42]} 23. e5 {[%clk 0:02:29]}  Ne8 {[%clk 0:01:21]} 24. Rxd5 {[%clk 0:02:27]}  Kf8 {[%clk 0:01:03]} 25. Rd7 {[%clk 0:02:21]}  Rc7 {[%clk 0:00:51]} 26. Rxc7 {[%clk 0:02:18]}  Nxc7 {[%clk 0:00:51]} 27. Bd2 {[%clk 0:02:19]}  Nc4 {[%clk 0:00:47]} 28. Bb4+ {[%clk 0:02:18]}  Ke8 {[%clk 0:00:46]} 29. Nd4 {[%clk 0:02:08]}  Kd7 {[%clk 0:00:35]} 30. f4 {[%clk 0:02:05]}  a5 {[%clk 0:00:33]} 31. Bf8 {[%clk 0:02:04]}  g6 {[%clk 0:00:33]} 32. g4 {[%clk 0:02:00]}  Ne6 {[%clk 0:00:31]} 33. Nxe6 {[%clk 0:01:59]}  Kxe6 {[%clk 0:00:26]} 34. Kf3 {[%clk 0:01:58]}  g5 {[%clk 0:00:20]} 35. fxg5 {[%clk 0:01:55]}  Kxe5 {[%clk 0:00:18]} 36. h4 {[%clk 0:01:54]}  b5 {[%clk 0:00:16]} 37. h5 {[%clk 0:01:51]}  Nd6 {[%clk 0:00:06]} 38. Ke3 {[%clk 0:01:44]}  b4 {[%clk 0:00:06]} 39. axb4 {[%clk 0:01:43]}  axb4 {[%clk 0:00:06]} 40. Bg7+ {[%clk 0:01:41]}  Kd5 {[%clk 0:00:05]} 41. Kf4 {[%clk 0:01:41]}  b3 {[%clk 0:00:03]} 42. Ba1 {[%clk 0:01:40]}  Ke6 {[%clk 0:00:01]} 43. Bc3 {[%clk 0:01:28]}  Nc4 {[%clk 0:00:02]} 44. g6 {[%clk 0:01:28]}  fxg6 {[%clk 0:00:01]} 45. Kg5 {[%clk 0:01:29]}  gxh5 {[%clk 0:00:01]} 46. Kxh5 {[%clk 0:01:28]}  Kf7 {[%clk 0:00:01]} 47. Kh6 {[%clk 0:01:28]}  Kg8 {[%clk 0:00:01]} 48. g5 {[%clk 0:01:28]}  b2 {[%clk 0:00:01]} 49. Bxb2 {[%clk 0:01:29]}  Nxb2 {[%clk 0:00:01]} 50. Kh5 {[%clk 0:01:27]}  Kg7 {[%clk 0:00:01]} 51. g6 {[%clk 0:01:28]}  hxg6+ {[%clk 0:00:02]} 52. Kg5 {[%clk 0:01:28]}  Nc4 {[%clk 0:00:02]} 53. Kf4 {[%clk 0:01:21]}  Nd6 {[%clk 0:00:03]} 54. Kg5 {[%clk 0:01:22]}  Kf7 {[%clk 0:00:03]} 55. Kf4 {[%clk 0:01:22]}  Kf6 {[%clk 0:00:04]} 56. Kg4 {[%clk 0:01:22]}  g5 {[%clk 0:00:04]} 57. Kg3 {[%clk 0:01:23]}  Kg6 {[%clk 0:00:05]} 58. Kh3 {[%clk 0:01:24]}  Kf5 {[%clk 0:00:06]} 59. Kg3 {[%clk 0:01:24]}  g4 {[%clk 0:00:07]} 60. Kg2 {[%clk 0:01:25]}  Kg5 {[%clk 0:00:08]} 61. Kf2 {[%clk 0:01:26]}  Kf4 {[%clk 0:00:09]} 62. Kg2 {[%clk 0:01:26]}  g3 {[%clk 0:00:10]} 63. Kg1 {[%clk 0:01:27]}  Kg4 {[%clk 0:00:11]} 64. Kh1 {[%clk 0:01:28]}  Kf3 {[%clk 0:00:11]} 65. Kg1 {[%clk 0:01:28]}  g2 {[%clk 0:00:12]} 66. Kh2 {[%clk 0:01:28]}  Ne4 {[%clk 0:00:13]} 67. Kh3 {[%clk 0:01:29]}  Kf2 {[%clk 0:00:14]} 68. Kh4 {[%clk 0:01:30]}  g1=Q {[%clk 0:00:15]} 69. Kh5 {[%clk 0:01:30]}  Qg3 {[%clk 0:00:16]} 70. Kh6 {[%clk 0:01:30]}  Qg5+ {[%clk 0:00:17]} 71. Kh7 {[%clk 0:01:30]}  Nf6+ {[%clk 0:00:16]} 72. Kh8 {[%clk 0:01:30]}  Qg8# {[%clk 0:00:16]} 0-1


[Site "https://www.chess.com"]